Cogmind - Beta 13 @@@ ROGUE MODE // 2024.05.27 @ 06:07:19 Player: Some Pennies Result: Destroyed by G-34 Mercenary with Small Laser Performance ------------- Evolutions (1) 500 Regions Visited (3) 600 Robots Destroyed (34) 170 Value Destroyed (689) 689 Prototype IDs (3) 60 Alien Tech Used (0) 0 Bonus (0) 0 TOTAL SCORE: 2019 Bonus ------- None Cogmind --------- Core Integrity 0/400 Matter 189/300 Energy 98/100 System Corruption 6% Temperature Cool (6) Movement Core (200) Ox3 Location -9/Materials Parts ------- > --- POWER (1) -------- (None) > --- PROPULSION (3) --- Faulty Improved Flight Unit > --- UTILITY (3) ------ Small Storage Unit Hacking Suite Hacking Suite > --- WEAPON (2) ------- Heavy Assault Rifle Autogun > --- INVENTORY (8) ---- Hacking Suite Hacking Suite Hacking Suite Advanced Beam Cannon Mini Grenade Launcher Datajack Mining Laser Signal Generator Peak State ------------ > --- POWER ------------ Light Ion Engine > --- PROPULSION ------- Flight Unit Improved Flight Unit > --- UTILITY ---------- Small Storage Unit Hacking Suite Hacking Suite > --- WEAPON ----------- Autogun Mini Grenade Launcher > --- INVENTORY -------- Hacking Suite Hacking Suite Hacking Suite Advanced Beam Cannon Heavy Assault Rifle Datajack Mining Laser Signal Generator [Rating: 18] Favorites ----------- Power Light Ion Engine Engine Light Ion Engine Propulsion Flight Unit Flight Unit Flight Unit Utility Hacking Suite Device Seismic Detector Storage Small Storage Unit Processor Targeting Computer Hackware Hacking Suite Weapon Light Assault Rifle Energy Gun Improved EM Shotgun Energy Cannon Advanced Beam Cannon Ballistic Gun Light Assault Rifle Launcher Mini Grenade Launcher Special Weapon Mining Laser Special Melee Weapon Datajack Build | -11 -10 -10 -9 ------- Run | Yrd Mat Min Mat Slots Evolved 2 | . . . 2 Power . | . . . . Propulsion 1 | . . . 1 Utility 1 | . . . 1 Weapon . | . . . . Parts Attached 44 | 2 8 7 27 Power 6 | . 2 1 3 Engine 6 | . 2 1 3 Core . | . . . . Reactor . | . . . . Propulsion 12 | . 3 1 8 Treads . | . . . . Leg . | . . . . Wheel . | . . . . Hover . | . . . . Flight 12 | . 3 1 8 Utility 6 | . 2 . 4 Device 1 | . . . 1 Storage 1 | . 1 . . Processor 2 | . 1 . 1 Hackware 2 | . . . 2 Protection . | . . . . Artifact . | . . . . Weapon 20 | 2 1 5 12 Energy Gun 1 | . . . 1 Energy Cannon 1 | . . . 1 Ballistic Gun 14 | 2 . 5 7 Ballistic Cannon . | . . . . Launcher 1 | . . . 1 Special Weapon 1 | . 1 . . Impact Weapon . | . . . . Slashing Weapon . | . . . . Piercing Weapon . | . . . . Special Melee Weapon 2 | . . . 2 Unidentified Prototypes 3 | . . . 3 Parts Lost 11 | . . . 11 Power 3 | . . . 3 Propulsion 7 | . . . 7 Utility 1 | . . . 1 Weapon . | . . . . Highest Loss Streak 5 | . . . 5 To Critical Strikes . | . . . . Average Slot Usage (%) 76 | . 61 77 79 Engine 10 | . 8 14 10 Flight 15 | . 17 28 14 Device 1 | . . . 1 Storage 10 | . 8 14 11 Processor 6 | . 4 14 5 Hackware 10 | . . . 13 Ballistic Gun 16 | . 21 6 15 Special Melee Weapon 4 | . . . 5 Naked Turns . | . . . . Heaviest Build 14 | 3 11 10 14 Greatest Support 12 | 3 8 8 12 Greatest Overweight (x) 4 | . 1 1 4 Average Overweight (x) . | . . . 1 Largest Inventory Capacity 8 | 5 8 8 8 Average Capacity 7 | 5 6 8 8 Most Carried 8 | 5 8 8 8 Average Carried 7 | 3 6 7 7 Final Capacity 8 | 5 8 8 8 Final Carried 8 | 5 8 8 8 Class Distribution -------------------- 39% | Hacker-Mutant 39% | Scavenger-Mutant 21% | Mutant Dominant Class ---------------- Mutant | -10/Materials Mutant | -10/Mines Hacker-Mutant | -9/Materials Resources | -11 -10 -10 -9 ----------- Run | Yrd Mat Min Mat Matter Collected 900 | 227 100 127 446 Remotely . | . . . . Salvage Created 1114 | 116 219 25 754 Parts 76 | 9 16 . 51 Haulers Intercepted 4 | . . . 4 Recyclers Shooed 1 | 1 . . . Parts Field Recycled . | . . . . Retrieved Matter . | . . . . Parts Self-Destructed . | . . . . Prevented . | . . . . Kills | -11 -10 -10 -9 ------- Run | Yrd Mat Min Mat Combat Hostiles Destroyed 22 | . 6 2 14 Guns 20 | . 6 2 12 AOE 2 | . . . 2 Classes Destroyed 12 | 2 3 1 6 Worker 1 | . . . 1 Tunneler 2 | 2 . . . Hauler 4 | . . . 4 Recycler 2 | 1 . . 1 Operator 3 | . . . 3 Watcher 2 | . 1 . 1 Swarmer 7 | . 3 . 4 Grunt 10 | . 3 . 7 Brawler 1 | . . . 1 Duelist 1 | . . . 1 Sentry 1 | . . . 1 Assembled 2 | . . 2 . Best Kill Streak 5 | 2 5 2 5 Combat Bots Only 5 | . 5 2 5 Max Kills in Single Turn 2 | 1 1 1 2 Gunslinging 1 | . . . 1 Exploded 1 | . . . 1 Melee . | . . . . Uniques/NPCs Destroyed . | . . . . Combat | -11 -10 -10 -9 -------- Run | Yrd Mat Min Mat Hostile Shots Fired 104 | . 17 3 84 Missed 29 | . 5 . 24 Damage Taken 1068 | . 121 41 906 Core 485 | . 67 13 405 Absorbed by Shields . | . . . . Core Remaining (%) 84 | 100 . 68 . Volleys Fired 123 | 12 17 4 90 Largest 2 | 2 2 2 2 Hottest 100 | 40 100 40 53 Shots Fired 239 | 24 33 8 174 Gun 232 | 24 32 8 168 Cannon . | . . . . Launcher 6 | . . . 6 Special 1 | . 1 . . Kinetic 232 | 24 32 8 168 Thermal 1 | . 1 . . Explosive 6 | . . . 6 Electromagnetic . | . . . . Robot Hit Streak 15 | 6 12 3 15 Robot Miss Streak 6 | 2 4 1 6 Penetration Max . | . . . . Secondary Targets 3 | . 1 . 2 Max Gunslinging Chain 1 | . 1 . 1 Shots Hit Robots 165 | 15 18 6 126 Core Hits 69 | 7 11 5 46 Critical Kills 1 | . 1 . . Critical Parts Destroyed . | . . . . Critical Strikes 1 | . 1 . . Destroy 1 | . 1 . . Melee Attacks 1 | . . . 1 Impact . | . . . . Slashing . | . . . . Piercing . | . . . . Sneak Attacks 1 | . . . 1 Combat Hostiles . | . . . . Follow-up Attacks . | . . . . Damage Inflicted 1916 | 165 204 46 1501 Guns 1476 | 165 204 46 1061 Cannons . | . . . . Explosions 440 | . . . 440 Melee . | . . . . Ramming . | . . . . Kinetic 1476 | 165 204 46 1061 Thermal . | . . . . Explosive 440 | . . . 440 Electromagnetic . | . . . . Impact . | . . . . Slashing . | . . . . Piercing . | . . . . Highest Corruption 6 | . . . 6 Average Corruption 1 | . . . 1 Corruption Purged . | . . . . Corruption Blocked . | . . . . Effects 9 | . . . 9 Message Errors 1 | . . . 1 Matter Fused 3 | . . . 3 Energy Discharges 2 | . . . 2 Data Loss (minor) 2 | . . . 2 Data Loss (major) 1 | . . . 1 Overload Shots . | . . . . Overflow Damage 15 | . . . 15 Projectiles . | . . . . Explosions 15 | . . . 15 Melee . | . . . . Knockbacks . | . . . . Impact . | . . . . Kinetic . | . . . . Secondary . | . . . . Self-Inflicted Damage 141 | . . . 141 Shots 3 | . . . 3 Rammed . | . . . . Targets Rammed . | . . . . Kicked . | . . . . Crushed . | . . . . Highest Temperature 368 | . 28 8 368 Average Temperature 38 | . 10 4 44 Received Heat Transfer 345 | . 36 . 309 Siege Activations . | . . . . Robots Corrupted . | . . . . Combat Hostiles . | . . . . Parts Fried . | . . . . Impact Corruptions . | . . . . Robots Melted . | . . . . Combat Hostiles . | . . . . Parts Melted . | . . . . Heat Transferred . | . . . . Parts Sabotaged . | . . . . Parts Stolen . | . . . . Parts Stripped . | . . . . Power Chain Reactions . | . . . . Alert | -11 -10 -10 -9 ------- Run | Yrd Mat Min Mat Peak Influence 379 | 15 233 90 379 Initial 90 | . 9 90 35 Average 123 | 5 131 90 129 Maximum Alert Level 1 | . 1 . 1 Low Security (%) 69 | 100 64 100 66 Level 1 30 | . 35 . 33 Level 2 . | . . . . Level 3 . | . . . . Level 4 . | . . . . Level 5 . | . . . . High Security . | . . . . Max Security . | . . . . Squads Dispatched 7 | . 3 . 4 Investigation 2 | . 2 . . Extermination . | . . . . Reinforcement 5 | . 1 . 4 Assault . | . . . . Garrison . | . . . . Intercept . | . . . . Searches Triggered . | . . . . Construction Impeded . | . . . . Haulers Reinforced . | . . . . Active Scanning Responses . | . . . . Cargo Convoy Interrupts . | . . . . Stealth | -11 -10 -10 -9 --------- Run | Yrd Mat Min Mat Distress Signals 3 | . 1 . 2 Communications Jammed . | . . . . Distress Signals . | . . . . Times Spotted 37 | . 9 2 26 Peak Tracking Total 7 | . 6 1 7 Tactical Retreats 2 | . 1 . 1 Traps | -11 -10 -10 -9 ------- Run | Yrd Mat Min Mat Traps Triggered 3 | . 1 . 2 Indirectly . | . . . . Trap Hack Attempts 53 | . . . 53 Triggered . | . . . . Disarmed . | . . . . Reprogrammed 5 | . . . 5 Reused . | . . . . Traps Extracted . | . . . . Installed . | . . . . Triggered . | . . . . Machines | -11 -10 -10 -9 ---------- Run | Yrd Mat Min Mat Machines Disabled 1 | . . . 1 Max in Single Turn 1 | . . . 1 Machines Repaired . | . . . . Machines Dismantled . | . . . . Machines Sabotaged . | . . . . Overloaded Fab Kills . | . . . . Hacking | -11 -10 -10 -9 --------- Run | Yrd Mat Min Mat Machines Accessed 9 | . 6 . 3 Terminals 7 | . 5 . 2 Fabricators . | . . . . Repair Stations . | . . . . Recycling Units 2 | . 1 . 1 Scanalyzers . | . . . . Garrison Access . | . . . . Total Hacks 22 | . 15 . 7 Successful 8 | . 5 . 3 Failed 14 | . 10 . 4 Catastrophic 1 | . 1 . . Database Lockouts . | . . . . Manual 16 | . 12 . 4 Terminals 16 | . 12 . 4 Fabricators . | . . . . Repair Stations . | . . . . Recycling Units 6 | . 3 . 3 Scanalyzers . | . . . . Garrison Access . | . . . . Terminal Hacks 1 | . 1 . . Robot Analysis 1 | . 1 . . Fabricator Hacks . | . . . . Repair Station Hacks . | . . . . Recycling Unit Hacks 2 | . 1 . 1 Retrieve Components 2 | . 1 . 1 Scanalyzer . | . . . . Garrison Access Hacks . | . . . . Unauthorized Hacks 5 | . 3 . 2 Terminals 3 | . 3 . . Assimilate 2 | . 2 . . Operators 1 | . 1 . . Fabricators . | . . . . Repair Stations . | . . . . Recycling Units 2 | . . . 2 Reject 1 | . . . 1 Mask 1 | . . . 1 Scanalyzers . | . . . . Garrison Access . | . . . . Data Cores Recovered . | . . . . Used . | . . . . Hacking Detections 6 | . 3 . 3 Full Trace Events 3 | . 2 . 1 Feedback Events . | . . . . Feedback Blocked . | . . . . Robot Schematics Acquired . | . . . . Robots Built . | . . . . Authchips . | . . . . Time . | . . . . Total Robot Build Rating . | . . . . Part Schematics Acquired . | . . . . Parts Built . | . . . . Authchips . | . . . . Time . | . . . . Total Part Build Rating . | . . . . Parts Repaired . | . . . . Time . | . . . . Parts Recycled . | . . . . Recycled Matter . | . . . . Retrieved Matter . | . . . . Retrieved Components 12 | . 2 . 10 Parts Scanalyzed . | . . . . Part Schematics Acquired . | . . . . Parts Damaged . | . . . . Bothacking | -11 -10 -10 -9 ------------ Run | Yrd Mat Min Mat Used RIF Installer . | . . . . Robots Hacked 1 | . . . 1 Non-combat 1 | . . . 1 Combat . | . . . . Robot Hacks Applied 1 | . . . 1 parse_system 1 | . . . 1 Relay Couplers Released . | . . . . Fabnet Peak Effective % . | . . . . Robots Rewired . | . . . . Allies Hacked . | . . . . Hacks Repelled . | . . . . Allies | -11 -10 -10 -9 -------- Run | Yrd Mat Min Mat Total Allies . | . . . . Largest Group . | . . . . Highest-Rated Group . | . . . . Highest-Rated Ally . | . . . . Total Orders . | . . . . Ally Attacks . | . . . . Total Damage . | . . . . Kills . | . . . . Allies Corrupted . | . . . . Allies Melted . | . . . . Intel | -11 -10 -10 -9 ------- Run | Yrd Mat Min Mat Robot Analysis Total 1 | . 1 . . Derelict Logs Recovered 1 | . . 1 . Drone Launches . | . . . . Drone Recoveries . | . . . . Exploration | -11 -10 -10 -9 ------------- Run | Yrd Mat Min Mat Turns Passed 2212 | 69 277 151 1715 Spaces Moved 1521 | 53 341 261 866 Core 215 | 53 132 . 30 Treads . | . . . . Legs . | . . . . Wheels . | . . . . Hover . | . . . . Flight 1306 | . 209 261 836 Fastest Speed 34 | 50 37 37 34 Average Speed 111 | 50 57 43 156 Slowest Speed 250 | 50 117 117 250 Overloaded Moves . | . . . . Propulsion Burnouts . | . . . . Robots Hopped 5 | . 2 . 3 Cave-ins Triggered . | . . . . Exploration Rate (%) 49 | 3 75 58 60 Regions Visited 3 Branch Regions 1 Pre-discovered Areas 1 | . . 1 . Known Exits Taken . | . . . . Unknown Exits Taken 3 | 1 1 1 . Scrap Searched . | . . . . Spaces Dug 1 | . 1 . . Terrain Destroyed 48 | . 1 . 47 Melee . | . . . . Projectile 1 | . 1 . . AOE 47 | . . . 47 Terrain Rammed . | . . . . Walls Destroyed . | . . . . Machines Disabled . | . . . . Actions | -11 -10 -10 -9 --------- Run | Yrd Mat Min Mat Total 1835 | 73 388 296 1078 Wait 40 | . 11 15 14 Move 1508 | 52 336 260 860 Hop 5 | . 2 . 3 Pick Up 34 | 7 7 4 16 Fast Attach 9 | . 3 . 6 Attach 19 | 2 3 4 10 Detach 5 | . 3 1 1 Swap 16 | . 2 3 11 Drop 22 | . 4 5 13 Fire 123 | 12 17 4 90 Melee 1 | . . . 1 Ram . | . . . . Kick . | . . . . Crush . | . . . . Escape Stasis . | . . . . Rewire . | . . . . Trap 53 | . . . 53 Miscellaneous . | . . . . Route ------- -11/Scrapyard -10/Materials (discovered 3 exits: *Mat x2 / [*Min]) -10/Mines -9/Materials (discovered 4 exits: [*Mat x3] / [*Min]) History --------- Turn | Location | Event 2 | -11/Scrapyard | Discovered new exit (range 16) 70 | -11/Scrapyard | Entered Materials 92 | -10/Materials | Discovered new exit (range 15) 233 | -10/Materials | Discovered new exit (range 12) 309 | -10/Materials | Build established: Mutant 326 | -10/Materials | Discovered new exit (range 12) 347 | -10/Materials | Entered Mines 354 | -10/Mines | Met a Derelict testing a Signal Generator 358 | -10/Mines | Found Signal Generator 373 | -10/Mines | Assembled infested the area 442 | -10/Mines | Learned location of Storage (-9) 464 | -10/Mines | Discovered new exit (range 9) 498 | -10/Mines | Entered Materials 498 | -9/Materials | Evolved 2 slots: Propulsion x1, Utility x1 684 | -9/Materials | Lost 4 parts (1p3n) 746 | -9/Materials | Build established: Scavenger-Mutant 801 | -9/Materials | Lost 5 parts (1p3n1u) 808 | -9/Materials | Discovered new exit (range 9) 853 | -9/Materials | Discovered new exit (range 14) 1157 | -9/Materials | Discovered new exit (range 4) 1461 | -9/Materials | Core integrity fell below 50% 1634 | -9/Materials | Build established: Hacker-Mutant 2123 | -9/Materials | Core integrity fell below 20% 2187 | -9/Materials | Discovered new exit (range 16) 2213 | -9/Materials | Destroyed by G-34 Mercenary with Small Laser Last Messages --------------- 02141_ Acquired 9 matter. 02143_ The unstable cave ceiling collapses. 02146_ K-01 Serf collects debris. 02148_ System corrupted: Matter fused (-6). 02151_ K-01 Serf collects debris. 02159_ The unstable cave ceiling collapses. 02162_ K-01 Serf collects debris. 02187_ EXIT=FOUND 02197_ O